fUST/lending_fUST_20250911
["ID","MTS","AMOUNT","RATE_DAILY","PERIOD"]
[384839065,1757583062564,-480.0,0.0001726,2]
[384839066,1757583062574,-480.0,0.0001726,2]
[384839067,1757583062583,-1037.62,0.0001726,2]
[384839068,1757583062592,-2337.83,0.0001726,2]
[384839069,1757583062601,-536.15,0.0001726,2]
[384839070,1757583062610,-1398.06,0.0001726,2]
[384839071,1757583062620,-1154.73,0.0001726,2]
[384839072,1757583062630,-1146.59,0.0001726,2]
[384839073,1757583062639,-591.7,0.0001726,2]
[384839074,1757583062649,-1163.79,0.0001726,2]
[384839075,1757583062659,-3030.31,0.0001726,2]
[384839076,1757583062668,-920.07,0.0001726,2]
[384839077,1757583062677,-2352.76,0.0001726,2]
[384839078,1757583062686,-889.18,0.0001726,2]
[384839079,1757583062695,-1492.93,0.0001726,2]
[384839080,1757583062705,-480.0,0.0001726,2]
[384839081,1757583062715,-2106.11,0.0001726,2]
[384839082,1757583062724,-586.05865254,0.00017338,2]
[384839083,1757583062733,-2358.8235278,0.00017372,2]
[384839084,1757583062743,-1046.85,0.00017534,2]
[384839085,1757583062752,-480.0,0.00017534,2]
[384839086,1757583062761,-812.26,0.00017534,2]
[384839087,1757583062771,-480.0,0.00017534,2]
[384839088,1757583062780,-993.24,0.00017534,2]
[384839089,1757583062789,-480.0,0.00017534,2]
[384839090,1757583062799,-480.0,0.00017534,2]
[384839091,1757583062808,-1037.62,0.00017534,2]
[384839092,1757583062818,-2337.83,0.00017534,2]
[384839093,1757583062827,-536.15,0.00017534,2]
[384839094,1757583062836,-1398.06,0.00017534,2]
[384839095,1757583062847,-1154.73,0.00017534,2]
[384839096,1757583062856,-1146.59,0.00017534,2]
[384839097,1757583062865,-591.7,0.00017534,2]
[384839098,1757583062874,-1163.79,0.00017534,2]
[384839099,1757583062883,-3030.31,0.00017534,2]
[384839100,1757583062893,-920.07,0.00017534,2]
[384839101,1757583062903,-2083.47869045,0.00017534,2]
[384839102,1757583066393,1466.2933007,0.00012719,2]
[384839103,1757583176450,-978.85801743,0.00013561,2]
[384839104,1757583176486,-2510.84843623,0.00013561,7]
[384839105,1757583176519,-802.87241139,0.00013598,2]
[384839106,1757583182530,300.0,0.00013597,2]
[384839107,1757583242556,300.0,0.00013597,2]
[384839109,1757583274860,321.97597647,0.00013597,2]
[384839110,1757583276718,373.62981234,0.00013597,2]
[384839111,1757583276753,119.24648109,0.00013597,2]
[384839112,1757583276775,175.77369123,0.00013597,2]
[384839113,1757583276808,250.0,0.00013597,2]
[384839114,1757583337172,2483.078144,0.00027397,120]
[384839115,1757583362734,300.0,0.00013597,2]
[384839117,1757583423178,300.0,0.00013597,2]
[384839118,1757583434878,702.51336001,0.00013498,2]
[384839119,1757583444529,1000.0,0.0001271,2]
[384839121,1757583475193,320.68714297,0.00013462,2]
[384839122,1757583482372,169.92953626,0.00028704,60]
[384839123,1757583482893,300.0,0.00013597,2]
[384839124,1757583502305,320.68714297,0.00013462,2]
[384839125,1757583526569,320.68714297,0.00013462,2]
[384839126,1757583543248,300.0,0.00013597,2]
[384839127,1757583552118,273.77011915,0.00013462,2]
[384839128,1757583602752,300.0,0.00013597,2]
[384839129,1757583609712,151.0,0.00013598,2]
[384839130,1757583609953,2030.296672,0.00013598,2]
[384839131,1757583610379,151.0,0.00013598,2]
[384839132,1757583610438,500.0,0.00013598,2]
[384839133,1757583611016,261.56817271,0.00013598,2]
[384839134,1757583611714,500.0,0.00013598,2]
[384839135,1757583612960,500.0,0.00013598,2]
[384839136,1757583613753,500.0,0.00013598,2]
[384839137,1757583614482,500.0,0.00013598,2]
[384839138,1757583615116,42.02655599,0.00013598,2]
[384839139,1757583615139,457.97344401,0.00013598,2]
[384839140,1757583615855,437.12397696,0.00013598,2]
[384839141,1757583645629,158.966034,0.00024,30]
[384839142,1757583645923,158.966034,0.00024,30]
[384839143,1757583647659,158.966034,0.00024,30]
[384839144,1757583663249,300.0,0.00013597,2]
[384839145,1757583671377,500.0,0.00020102,30]
[384839146,1757583671858,500.0,0.00020102,30]
[384839147,1757583672352,500.0,0.00020102,30]
[384839148,1757583672834,230.27988909,0.00020102,30]
[384839149,1757583691951,8804.91257903,0.00013598,2]
[384839150,1757583691975,125.63163523,0.00013598,2]
[384839151,1757583695350,159.230121,0.00024,30]
[384839152,1757583720906,614.69919,0.00013498,2]
[384839153,1757583722656,300.0,0.00013597,2]
[384839157,1757583775089,475.1291556,0.00013598,2]
[384839158,1757583782989,300.0,0.00013597,2]
[384839159,1757583846361,8184.55001917,0.00013,2]
[384839160,1757583846381,10000.01,0.00013,2]
[384839161,1757583846402,10000.01,0.00013,2]
[384839162,1757583846423,10000.01,0.00013,2]
[384839163,1757583846444,10000.01,0.00013,2]
[384839164,1757583846464,10000.01,0.00013,2]
[384839165,1757583846484,10000.01,0.00013,2]
[384839166,1757583846504,10000.01,0.00013,2]
[384839167,1757583846524,10000.01,0.00013,2]
[384839168,1757583846545,10000.01,0.00013,2]
[384839169,1757583846566,10000.01,0.00013,2]
[384839170,1757583846587,10000.01,0.00013,2]
[384839171,1757583846607,5952.40608083,0.00013,2]
[384839172,1757583861209,1181.18293475,0.00013462,2]
[384839173,1757583862795,2021.44,0.00012329,2]
[384839174,1757583870382,7822.1864408,0.00013462,2]
[384839175,1757583872393,10000.01,0.00013,3]
[384839176,1757583872415,7169.69,0.00013,3]
[384839177,1757583873183,2355.51,0.00012329,2]
[384839178,1757583879392,5416.05768698,0.00013462,2]
[384839179,1757583883588,1962.93,0.00012329,2]
[384839180,1757583894203,1635.77,0.00012329,2]
[384839181,1757583904073,1537.80800552,0.00028695,60]
[384839182,1757583904597,985.25231302,0.00012329,2]
[384839183,1757583904622,377.88768698,0.00012329,2]
[384839184,1757583915028,1135.95,0.00012329,2]
[384839185,1757583925404,946.63,0.00012329,2]
[384839186,1757583928187,204.10530951,0.00013498,2]
[384839187,1757583935788,788.86,0.00012329,2]
[384839188,1757583936371,162.0,0.0002599,120]
[384839189,1757583937645,162.0,0.0002729,120]
[384839190,1757583946409,657.38,0.00012329,2]
[384839191,1757583956806,547.82,0.00012329,2]
[384839192,1757583967211,456.51,0.00012329,2]
[384839194,1757583978157,380.43,0.00012329,2]
[384839195,1757583988882,317.02,0.00012329,2]
[384839196,1757583999312,264.19,0.00012329,2]
[384839197,1757584001263,735.60933633,0.00013498,2]
[384839198,1757584007970,512.35744456,0.0001319,2]
[384839199,1757584020361,220.15,0.00012329,2]
[384839200,1757584030936,183.46,0.00012329,2]
[384839201,1757584041320,152.89,0.00012329,2]
[384839204,1757584051736,764.45,0.00012329,2]
[384839241,1757584194561,334.0,0.00023288,120]
[384839243,1757584217937,1444.0,0.00026137,120]
[384839276,1757584232034,-1200.0,0.00013596,2]
[384839278,1757584232044,-300.0,0.00013596,2]
[384839280,1757584232053,-300.0,0.00013596,2]
[384839281,1757584232065,-300.0,0.00013596,2]
[384839282,1757584232075,-300.0,0.00013596,2]
[384839283,1757584232084,-1200.0,0.00013596,2]
[384839285,1757584232093,-500.0,0.00013597,2]
[384839286,1757584232103,-500.0,0.00013597,2]
[384839287,1757584232112,-500.0,0.00013597,2]
[384839288,1757584232122,-298.11456859,0.00013597,2]
[384839289,1757584232131,-2104.08061695,0.00013598,2]
[384839291,1757584232141,-5953.69614284,0.00013598,2]
[384839292,1757584232150,-4682.14337039,0.00013598,2]
[384839293,1757584235037,162.0,0.0002606,120]
[384839294,1757584236374,162.0,0.00027363,120]
[384839318,1757584237983,-91837.62277579,0.00013598,2]
[384839319,1757584237994,-1000.0,0.00013598,2]
[384839320,1757584238004,-501.26335615,0.00013673,2]
[384839321,1757584238013,-164.42309066,0.00013673,2]
[384839322,1757584238023,-500.0,0.00013673,2]
[384839323,1757584238032,-500.0,0.00013673,2]
[384839324,1757584238042,-500.0,0.00013673,2]
[384839325,1757584238051,-500.0,0.00013673,2]
[384839326,1757584238064,-501.45101962,0.00013673,2]
[384839327,1757584238073,-500.0,0.00013673,2]
[384839328,1757584238083,-500.0,0.00013673,2]
[384839329,1757584238093,-500.0,0.00013673,2]
[384839330,1757584238102,-500.0,0.00013673,2]
[384839331,1757584238111,-500.72958271,0.00013673,2]
[384839332,1757584238121,-50000.0,0.00013673,2]
[384839333,1757584238131,-483.79287691,0.00013698,2]
[384839334,1757584238140,-480.0,0.00013698,2]
[384839335,1757584238150,-484.49284724,0.00013698,2]
[384839336,1757584238159,-480.0,0.00013698,2]
[384839337,1757584238169,-480.0,0.00013698,2]
[384839338,1757584238179,-480.0,0.00013698,2]
[384839339,1757584238188,-480.0,0.00013698,2]
[384839340,1757584238198,-480.0,0.00013698,2]
[384839341,1757584238207,-480.0,0.00013698,2]
[384839342,1757584238217,-480.0,0.00013698,2]
[384839343,1757584238227,-480.0,0.00013698,2]
[384839344,1757584238237,-480.0,0.00013698,2]
[384839345,1757584238246,-480.0,0.00013698,2]
[384839346,1757584238255,-480.0,0.00013698,2]
[384839347,1757584238265,-480.46002979,0.00013698,2]
[384839348,1757584238274,-480.0,0.00013698,2]
[384839349,1757584238283,-480.0,0.00013698,2]
[384839350,1757584238293,-480.0,0.00013698,2]
[384839351,1757584238302,-480.0,0.00013698,2]
[384839352,1757584238312,-480.0,0.00013698,2]
[384839353,1757584238322,-480.0,0.00013698,2]
[384839354,1757584238333,-480.0,0.00013698,2]
[384839355,1757584238344,-480.0,0.00013698,2]
[384839356,1757584238355,-480.0,0.00013698,2]
[384839357,1757584238365,-480.0,0.00013698,2]
[384839358,1757584238374,-219.27729794,0.00013698,2]
[384839359,1757584238383,-480.0,0.00013698,2]
[384839360,1757584238393,-480.0,0.00013698,2]
[384839361,1757584238403,-480.0,0.00013698,2]
[384839362,1757584238413,-480.0,0.00013698,2]
[384839363,1757584238422,-480.0,0.00013698,2]
[384839364,1757584238431,-480.0,0.00013698,2]
[384839365,1757584238441,-480.0,0.00013698,2]
[384839366,1757584238450,-602.98094224,0.00013698,2]
[384839367,1757584238460,-219.27729794,0.00013698,2]
[384839368,1757584238469,-480.0,0.00013698,2]
[384839369,1757584238479,-480.0,0.00013698,2]
[384839370,1757584238488,-480.0,0.00013698,2]
[384839371,1757584238497,-480.0,0.00013698,2]
[384839372,1757584238507,-480.0,0.00013698,2]
[384839373,1757584238516,-480.0,0.00013698,2]
[384839374,1757584238526,-480.0,0.00013698,2]
[384839375,1757584238535,-480.0,0.00013698,2]
[384839376,1757584238544,-480.0,0.00013698,2]
[384839377,1757584238554,-480.0,0.00013698,2]
[384839378,1757584238563,-480.0,0.00013698,2]
[384839379,1757584238573,-480.0,0.00013698,2]
[384839380,1757584238582,-480.0,0.00013698,2]
[384839381,1757584238592,-480.85952603,0.00013698,2]
[384839382,1757584238601,-502.26518373,0.00013698,2]
[384839383,1757584238610,-480.0,0.00013698,2]
[384839384,1757584238620,-481.00994577,0.00013698,2]
[384839385,1757584238629,-480.0,0.00013698,2]
[384839386,1757584238639,-480.56902108,0.00013698,2]
[384839387,1757584238648,-480.0,0.00013698,2]
[384839388,1757584238658,-480.0,0.00013698,2]
[384839389,1757584238667,-480.0,0.00013698,2]
[384839390,1757584238676,-480.0,0.00013698,2]
[384839391,1757584238686,-480.56793342,0.00013698,2]
[384839392,1757584238695,-480.0,0.00013698,2]
[384839393,1757584238704,-480.96517909,0.00013698,2]
[384839394,1757584238714,-480.0,0.00013698,2]
[384839395,1757584238723,-480.0,0.00013698,2]
[384839396,1757584238732,-480.0,0.00013698,2]
[384839397,1757584238741,-480.0,0.00013698,2]
[384839398,1757584238751,-480.0,0.00013698,2]
[384839399,1757584238761,-480.0,0.00013698,2]
[384839400,1757584238770,-485.12697769,0.00013698,2]
[384839401,1757584238780,-485.79393001,0.00013698,2]
[384839402,1757584238789,-480.0,0.00013698,2]
[384839403,1757584238798,-480.0,0.00013698,2]
[384839404,1757584238808,-480.0,0.00013698,2]
[384839405,1757584238818,-484.18620917,0.00013698,2]
[384839406,1757584238827,-481.24041176,0.00013698,2]
[384839407,1757584238837,-480.0,0.00013698,2]
[384839408,1757584238846,-480.0,0.00013698,2]
[384839409,1757584238855,-480.0,0.00013698,2]
[384839410,1757584238864,-480.0,0.00013698,2]
[384839411,1757584238874,-480.0,0.00013698,2]
[384839412,1757584238883,-480.0,0.00013698,2]
[384839413,1757584238892,-480.0,0.00013698,2]
[384839414,1757584238902,-483.70607168,0.00013698,2]
[384839415,1757584238912,-480.0,0.00013698,2]
[384839416,1757584238922,-480.0,0.00013698,2]
[384839417,1757584238936,-480.0,0.00013698,2]
[384839418,1757584238951,-480.0,0.00013698,2]
[384839419,1757584238965,-480.0,0.00013698,2]
[384839420,1757584238978,-482.28867914,0.00013698,2]
[384839421,1757584238988,-480.0,0.00013698,2]
[384839422,1757584239001,-480.0,0.00013698,2]
[384839423,1757584239014,-480.0,0.00013698,2]
[384839424,1757584239027,-480.0,0.00013698,2]
[384839425,1757584239041,-480.0,0.00013698,2]
[384839426,1757584239055,-480.0,0.00013698,2]
[384839427,1757584239072,-480.0,0.00013698,2]
[384839428,1757584239086,-480.0,0.00013698,2]
[384839429,1757584239100,-480.0,0.00013698,2]
[384839430,1757584239115,-480.0,0.00013698,2]
[384839431,1757584239127,-480.0,0.00013698,2]
[384839432,1757584239140,-480.0,0.00013698,2]
[384839433,1757584239154,-485.34736645,0.00013698,2]
[384839434,1757584239166,-575.21,0.00013698,2]
[384839435,1757584239181,-480.0,0.00013698,2]
[384839436,1757584239194,-481.64264598,0.00013698,2]
[384839437,1757584239208,-480.0,0.00013698,2]
[384839438,1757584239220,-492.94441402,0.00013698,2]
[384839439,1757584239231,-481.25073779,0.00013698,2]
[384839440,1757584239243,-480.0,0.00013698,2]
[384839441,1757584239255,-480.0,0.00013698,2]
[384839442,1757584239268,-480.0,0.00013698,2]
[384839443,1757584239280,-480.0,0.00013698,2]
[384839444,1757584239293,-480.0,0.00013698,2]
[384839445,1757584239305,-480.0,0.00013698,2]
[384839446,1757584239319,-1000.0,0.00013698,2]
[384839447,1757584239333,-480.0,0.00013698,2]
[384839448,1757584239346,-480.0,0.00013698,2]
[384839449,1757584239361,-500.0,0.00013698,2]
[384839450,1757584239372,-500.0,0.00013698,2]
[384839451,1757584239382,-446.58561573,0.00013698,2]
[384839452,1757584239393,-480.0,0.00013698,2]
[384839453,1757584239406,-480.0,0.00013698,2]
[384839454,1757584239420,-480.0,0.00013698,2]
[384839455,1757584239433,-480.0,0.00013698,2]
[384839456,1757584239444,-480.0,0.00013698,2]
[384839457,1757584239455,-480.0,0.00013698,2]
[384839458,1757584239467,-480.0,0.00013698,2]
[384839459,1757584239479,-480.0,0.00013698,2]
[384839460,1757584239491,-535.61053109,0.00013698,2]
[384839461,1757584239502,-480.0,0.00013698,2]
[384839462,1757584239513,-480.0,0.00013698,2]
[384839463,1757584239524,-500.0,0.00013698,2]
[384839464,1757584239535,-500.0,0.00013698,2]
[384839465,1757584239546,-586.13994033,0.00013698,2]
[384839467,1757584239557,-480.0,0.00013698,2]
[384839468,1757584239569,-480.0,0.00013698,2]
[384839469,1757584239581,-480.0,0.00013698,2]
[384839470,1757584239593,-480.0,0.00013698,2]
[384839471,1757584239604,-480.0,0.00013698,2]
[384839472,1757584239615,-480.0,0.00013698,2]
[384839473,1757584239627,-480.0,0.00013698,2]
[384839474,1757584239638,-480.0,0.00013698,2]
[384839475,1757584239651,-480.0,0.00013698,2]
[384839476,1757584239662,-480.0,0.00013698,2]
[384839477,1757584239674,-562.7850367,0.00013698,2]
[384839478,1757584239685,-289.50113648,0.00013698,2]
[384839479,1757584239697,-481.97630846,0.00013698,2]
[384839480,1757584239709,-480.0,0.00013698,2]
[384839481,1757584239720,-480.0,0.00013698,2]
[384839482,1757584239732,-482.83713647,0.00013698,2]
[384839483,1757584239743,-480.0,0.00013698,2]
[384839484,1757584239755,-481.26164314,0.00013698,2]
[384839486,1757584239767,-480.0,0.00013698,2]
[384839489,1757584239779,-480.0,0.00013698,2]
[384839491,1757584239790,-384.83179176,0.00013698,2]
[384839493,1757584239801,-481.47972172,0.00013698,2]
[384839495,1757584239813,-480.0,0.00013698,2]
[384839497,1757584239824,-480.0,0.00013698,2]
[384839498,1757584239836,-480.0,0.00013698,2]
[384839499,1757584239847,-480.0,0.00013698,2]
[384839500,1757584239859,-480.0,0.00013698,2]
[384839501,1757584239870,-480.0,0.00013698,2]
[384839502,1757584239881,-480.0,0.00013698,2]
[384839503,1757584239892,-480.0,0.00013698,2]
[384839504,1757584239904,-480.0,0.00013698,2]
[384839505,1757584239915,-480.0,0.00013698,2]
[384839506,1757584239926,-486.47238065,0.00013698,2]
[384839507,1757584239937,-480.0,0.00013698,2]
[384839508,1757584239950,-480.0,0.00013698,2]
[384839509,1757584239961,-480.0,0.00013698,2]
[384839510,1757584239973,-484.59824169,0.00013698,2]
[384839511,1757584239984,-480.0,0.00013698,2]
[384839512,1757584239996,-480.0,0.00013698,2]
[384839513,1757584240006,-484.51994604,0.00013698,2]
[384839514,1757584240018,-480.0,0.00013698,2]
[384839515,1757584240029,-480.0,0.00013698,2]
[384839516,1757584240040,-480.0,0.00013698,2]
[384839517,1757584240052,-480.0,0.00013698,2]
[384839519,1757584240067,-480.0,0.00013698,2]
[384839521,1757584240078,-485.64176406,0.00013698,2]
[384839523,1757584240089,-480.0,0.00013698,2]
[384839525,1757584240100,-483.25347614,0.00013698,2]
[384839527,1757584240112,-484.3639628,0.00013698,2]
[384839528,1757584240122,-480.0,0.00013698,2]
[384839529,1757584240134,-480.0,0.00013698,2]
[384839530,1757584240145,-481.56733637,0.00013698,2]
[384839531,1757584240156,-486.15588824,0.00013698,2]
[384839534,1757584240299,-480.0,0.00013698,2]
[384839535,1757584240316,-480.0,0.00013698,2]
[384839536,1757584240326,-480.0,0.00013698,2]
[384839537,1757584240335,-482.80616375,0.00013698,2]
[384839538,1757584240345,-480.0,0.00013698,2]
[384839539,1757584240354,-480.0,0.00013698,2]
[384839540,1757584240365,-480.0,0.00013698,2]
[384839541,1757584240375,-480.0,0.00013698,2]
[384839542,1757584240384,-480.0,0.00013698,2]
[384839543,1757584240394,-480.0,0.00013698,2]
[384839544,1757584240404,-480.0,0.00013698,2]
[384839545,1757584240413,-480.0,0.00013698,2]
[384839546,1757584240423,-482.57462734,0.00013698,2]
[384839547,1757584240433,-480.0,0.00013698,2]
[384839548,1757584240441,-483.09420412,0.00013698,2]
[384839549,1757584240451,-511.783502,0.00013698,2]
[384839550,1757584240460,-480.0,0.00013698,2]
[384839551,1757584240470,-480.0,0.00013698,2]
[384839552,1757584240479,-480.0,0.00013698,2]
[384839553,1757584240488,-483.31654338,0.00013698,2]
[384839554,1757584240498,-480.0,0.00013698,2]
[384839555,1757584240508,-488.68903083,0.00013698,2]
[384839556,1757584240517,-480.0,0.00013698,2]
[384839557,1757584240526,-480.0,0.00013698,2]
[384839558,1757584240535,-480.0,0.00013698,2]
[384839559,1757584240544,-480.0,0.00013698,2]
[384839560,1757584240554,-500.0,0.00013698,2]
[384839561,1757584240563,-500.0,0.00013698,2]
[384839562,1757584240572,-500.0,0.00013698,2]
[384839563,1757584240582,-500.0,0.00013698,2]
[384839564,1757584240591,-363.3,0.00013698,2]
[384839565,1757584240601,-480.0,0.00013698,2]
[384839566,1757584240610,-481.18234921,0.00013698,2]
[384839567,1757584240619,-500.0,0.00013698,2]
[384839568,1757584240629,-480.0,0.00013698,2]
[384839569,1757584240638,-480.0,0.00013698,2]
[384839570,1757584240648,-480.0,0.00013698,2]
[384839571,1757584240658,-480.0,0.00013698,2]
[384839572,1757584240667,-480.0,0.00013698,2]
[384839573,1757584240676,-480.0,0.00013698,2]
[384839574,1757584240685,-480.0,0.00013698,2]
[384839575,1757584240696,-481.44026415,0.00013698,2]
[384839576,1757584240704,-480.0,0.00013698,2]
[384839577,1757584240714,-480.0,0.00013698,2]
[384839578,1757584240723,-480.0,0.00013698,2]
[384839579,1757584240733,-480.0,0.00013698,2]
[384839580,1757584240742,-1008.10669318,0.00013698,2]
[384839581,1757584240751,-480.0,0.00013698,2]
[384839582,1757584240761,-480.0,0.00013698,2]
[384839583,1757584240771,-480.0,0.00013698,2]
[384839584,1757584240780,-480.0,0.00013698,2]
[384839585,1757584240789,-480.0,0.00013698,2]
[384839586,1757584240799,-480.0,0.00013698,2]
[384839587,1757584240808,-480.0,0.00013698,2]
[384839588,1757584240817,-480.0,0.00013698,2]
[384839589,1757584240826,-480.0,0.00013698,2]
[384839590,1757584240836,-480.0,0.00013698,2]
[384839591,1757584240847,-480.0,0.00013698,2]
[384839592,1757584240857,-480.0,0.00013698,2]
[384839593,1757584240867,-480.0,0.00013698,2]
[384839594,1757584240876,-480.0,0.00013698,2]
[384839595,1757584240887,-480.0,0.00013698,2]
[384839596,1757584240897,-480.0,0.00013698,2]
[384839597,1757584240907,-480.0,0.00013698,2]
[384839598,1757584240915,-480.0,0.00013698,2]
[384839599,1757584240924,-480.0,0.00013698,2]
[384839600,1757584240935,-483.75086795,0.00013698,2]
[384839601,1757584240943,-480.0,0.00013698,2]
[384839602,1757584240953,-480.0,0.00013698,2]
[384839603,1757584240962,-480.0,0.00013698,2]
[384839604,1757584240971,-483.47439631,0.00013698,2]
[384839605,1757584240980,-480.0,0.00013698,2]
[384839606,1757584240990,-480.0,0.00013698,2]
[384839607,1757584241000,-437.79639497,0.00013698,2]
[384839608,1757584241010,-480.0,0.00013698,2]
[384839609,1757584241019,-480.0,0.00013698,2]
[384839610,1757584241029,-480.0,0.00013698,2]
[384839611,1757584241038,-480.0,0.00013698,2]
[384839612,1757584241047,-480.0,0.00013698,2]
[384839613,1757584241058,-480.0,0.00013698,2]
[384839614,1757584241071,-480.0,0.00013698,2]
[384839615,1757584241080,-480.0,0.00013698,2]
[384839616,1757584241090,-480.0,0.00013698,2]
[384839617,1757584241099,-480.0,0.00013698,2]
[384839618,1757584241108,-480.0,0.00013698,2]
[384839619,1757584241117,-450.35955685,0.00013698,2]
[384839620,1757584241127,-480.0,0.00013698,2]
[384839621,1757584241136,-484.91678616,0.00013698,2]
[384839622,1757584241146,-327.42979184,0.00013698,2]
[384839623,1757584241156,-480.0,0.00013698,2]
[384839624,1757584241165,-480.0,0.00013698,2]
[384839625,1757584241175,-480.0,0.00013698,2]
[384839626,1757584241184,-480.0,0.00013698,2]
[384839627,1757584241194,-480.0,0.00013698,2]
[384839628,1757584241203,-480.0,0.00013698,2]
[384839629,1757584241212,-480.0,0.00013698,2]
[384839630,1757584241221,-482.54798358,0.00013698,2]
[384839631,1757584241230,-480.0,0.00013698,2]
[384839632,1757584241240,-480.0,0.00013698,2]
[384839633,1757584241249,-480.0,0.00013698,2]
[384839634,1757584241258,-480.0,0.00013698,2]
[384839635,1757584241268,-480.0,0.00013698,2]
[384839636,1757584241277,-429.94356875,0.00013698,2]
[384839637,1757584241287,-480.0,0.00013698,2]
[384839638,1757584241296,-491.3623074,0.00013698,2]
[384839639,1757584241306,-480.0,0.00013698,2]
[384839640,1757584241315,-480.0,0.00013698,2]
[384839641,1757584241325,-492.16983846,0.00013698,2]
[384839642,1757584241334,-480.0,0.00013698,2]
[384839643,1757584241344,-480.0,0.00013698,2]
[384839644,1757584241353,-480.0,0.00013698,2]
[384839645,1757584241363,-482.59038673,0.00013698,2]
[384839646,1757584241373,-480.0,0.00013698,2]
[384839647,1757584241383,-480.0,0.00013698,2]
[384839648,1757584241392,-480.0,0.00013698,2]
[384839649,1757584241402,-480.0,0.00013698,2]
[384839650,1757584241411,-480.0,0.00013698,2]
[384839651,1757584241420,-480.0,0.00013698,2]
[384839652,1757584241430,-480.0,0.00013698,2]
[384839653,1757584241440,-480.0,0.00013698,2]
[384839654,1757584241449,-480.0,0.00013698,2]
[384839655,1757584241459,-480.0,0.00013698,2]
[384839656,1757584241468,-480.0,0.00013698,2]
[384839657,1757584241478,-480.0,0.00013698,2]
[384839658,1757584241487,-480.0,0.00013698,2]
[384839659,1757584241496,-480.0,0.00013698,2]
[384839660,1757584241506,-480.0,0.00013698,2]
[384839661,1757584241515,-480.0,0.00013698,2]
[384839662,1757584241524,-544.97236515,0.00013698,2]
[384839663,1757584241534,-480.0,0.00013698,2]
[384839664,1757584241543,-480.0,0.00013698,2]
[384839665,1757584241553,-480.0,0.00013698,2]
[384839666,1757584241563,-480.0,0.00013698,2]
[384839667,1757584241572,-480.0,0.00013698,2]
[384839668,1757584241582,-480.0,0.00013698,2]
[384839669,1757584241591,-480.0,0.00013698,2]
[384839670,1757584241601,-480.0,0.00013698,2]
[384839671,1757584241611,-480.0,0.00013698,2]
[384839672,1757584241620,-480.0,0.00013698,2]
[384839673,1757584241630,-384.93734558,0.00013698,2]
[384839674,1757584241639,-1053.06,0.00013698,2]
[384839675,1757584241649,-480.0,0.00013698,2]
[384839676,1757584241658,-554.44326287,0.00013698,2]
[384839677,1757584241668,-480.0,0.00013698,2]
[384839678,1757584241677,-480.0,0.00013698,2]
[384839679,1757584241687,-480.0,0.00013698,2]
[384839680,1757584241696,-480.0,0.00013698,2]
[384839681,1757584241706,-480.0,0.00013698,2]
[384839682,1757584241716,-480.0,0.00013698,2]
[384839683,1757584241725,-523.43,0.00013698,2]
[384839684,1757584241735,-477.72843832,0.00013698,2]